fUST/lending_fUST_20251217
["ID","MTS","AMOUNT","RATE_DAILY","PERIOD"]
[398871057,1765943440658,-300.0,0.00015089,2]
[398871059,1765943440667,-6177.65650114,0.00015242,2]
[398871061,1765943440678,-366.39040813,0.00015242,2]
[398871227,1765943443297,-87231.744708,0.00015242,2]
[398871649,1765943768941,150.0,8.335e-05,2]
[398871650,1765943769908,150.0,9.092e-05,2]
[398871651,1765943836709,150.0,8.309e-05,2]
[398871652,1765943837590,150.0,9.065e-05,2]
[398871653,1765943903387,150.0,8.344e-05,2]
[398871672,1765944567137,-194.80192129,0.00012845,2]
[398871673,1765944567159,-500.0,0.00013273,2]
[398871674,1765944567177,-500.0,0.00013273,2]
[398871675,1765944567196,-236.64919571,0.00013273,2]
[398871676,1765944572088,-263.35080429,0.00013273,2]
[398871677,1765944572107,-500.0,0.00013273,2]
[398871678,1765944572125,-443.91652653,0.00013273,2]
[398871679,1765944572145,-31.20766918,0.00013699,2]
[398871750,1765944638683,-500.0,0.00013273,2]
[398871752,1765944638694,-500.0,0.00013273,2]
[398871755,1765944638704,-468.79233082,0.00013699,2]
[398871757,1765944638715,-500.0,0.00013699,2]
[398871759,1765944638727,-500.0,0.00013699,2]
[398871761,1765944638746,-615.0,0.00013699,2]
[398871763,1765944638756,-117.32787973,0.0001382,2]
[398871765,1765944638768,-182.67212027,0.0001382,2]
[398871767,1765944638779,-180.08050726,0.0001382,2]
[398871770,1765944638791,-538.362,0.0001382,2]
[398871935,1765944640440,-481.55749274,0.0001382,2]
[398871936,1765944640451,-1000.0,0.00013821,2]
[398871937,1765944640461,-1000.0,0.00013821,2]
[398871938,1765944640471,-1000.0,0.00013821,2]
[398871939,1765944640480,-1000.0,0.00014247,2]
[398871940,1765944640491,-1000.0,0.00014247,2]
[398871941,1765944640500,-1000.0,0.00014247,2]
[398871942,1765944640510,-1434.81926997,0.00014368,2]
[398871943,1765944640520,-338.38061279,0.00014368,2]
[398871944,1765944640530,-1500.0,0.00014368,2]
[398871945,1765944640539,-318.05831996,0.00014368,2]
[398871946,1765944640549,-500.0,0.00014794,2]
[398871947,1765944640559,-268.02337801,0.00014794,2]
[398871948,1765944640569,-500.0,0.00014794,2]
[398871949,1765944640578,-368.85114516,0.00014794,2]
[398871950,1765944640588,-518.89671487,0.00014794,2]
[398871951,1765944640597,-500.0,0.00014794,2]
[398871952,1765944640606,-1500.0,0.00014795,2]
[398871953,1765944640616,-208.156204,0.00014795,2]
[398872246,1765944643280,-500.0,0.00014795,2]
[398872258,1765944643388,-791.843796,0.00014795,2]
[398872261,1765944643399,-1500.0,0.00014795,2]
[398872264,1765944643419,-281.226,0.00014795,2]
[398872266,1765944643432,-229.86626712,0.00014845,2]
[398872269,1765944643444,-1857.68437371,0.00014906,2]
[398872271,1765944643457,-5160.2805434,0.00015086,2]
[398872273,1765944643468,-600.0,0.00015089,2]
[398872275,1765944643480,-296.22134456,0.00015141,2]
[398872278,1765944643491,-13628.77291478,0.00015142,2]
[398872280,1765944643504,-750.0,0.00015142,2]
[398872560,1765944646429,-5708.81733562,0.00015142,2]
[398872785,1765944684655,150.0,7.782e-05,2]
[398872786,1765944685544,150.0,8.489e-05,2]
[398872787,1765944685992,150.0,9.197e-05,2]
[398872788,1765944754300,150.0,7.758e-05,2]
[398872789,1765944754694,150.0,8.463e-05,2]
[398872790,1765944755100,150.0,9.168e-05,2]
[398872791,1765944820937,150.0,7.759e-05,2]
[398872792,1765945471438,150.0,9.348e-05,2]
[398872793,1765945538181,150.0,8.835e-05,2]
[398872794,1765945556209,160.0,1.02e-05,5]
[398872795,1765945595125,-353.82423985,0.0001,2]
[398872796,1765945634097,-3374.17576015,0.0001,2]
[398872797,1765945634117,-158.78,0.0001,2]
[398872798,1765945634138,-193.96275489,0.000101,2]
[398872799,1765945634159,-158.78,0.000103,2]
[398872800,1765945634180,-158.78,0.000105,2]
[398872801,1765945634200,-158.78,0.000108,2]
[398872802,1765945634220,-228.87605077,0.000121,2]
[398872803,1765945634239,-768.0929506,0.00012105,2]
[398872804,1765945634259,-300.0,0.00012126,2]
[398872805,1765945634278,-2207.7892464,0.00012127,2]
[398872806,1765945634298,-1200.0,0.00012368,2]
[398872807,1765945634319,-300.0,0.00012369,2]
[398872808,1765945634342,-300.0,0.00012369,2]
[398872809,1765945634365,-300.0,0.00012369,2]
[398872810,1765945634387,-300.0,0.00012369,2]
[398872811,1765945634409,-300.0,0.00012369,2]
[398872812,1765945634440,-300.0,0.00012369,2]
[398872813,1765945634464,-300.0,0.00012369,2]
[398872814,1765945634485,-300.0,0.00012369,2]
[398872815,1765945634506,-300.0,0.00012369,2]
[398872816,1765945634529,-300.0,0.00012369,2]
[398872817,1765945634549,-300.0,0.00012369,2]
[398872818,1765945634571,-300.0,0.00012369,2]
[398872819,1765945634595,-300.0,0.00012369,2]
[398872820,1765945634622,-300.0,0.00012369,2]
[398872821,1765945634646,-300.0,0.00012369,2]
[398872822,1765945634666,-168.76630165,0.00012614,2]
[398872823,1765945634688,-600.0,0.00012615,2]
[398872824,1765945634711,-120.52433621,0.00013273,2]
[398872839,1765945750222,-758.29039373,0.0001196,2]
[398872840,1765945750242,-758.29039373,0.00012822,2]
[398872841,1765945750263,-153.5,0.000132,2]
[398872842,1765945750285,-300.0,0.00013272,2]
[398872843,1765945750304,-379.47566379,0.00013273,2]
[398872844,1765945750323,-356.76668823,0.00013273,2]
[398872846,1765945768080,-158.78,0.0001,2]
[398872847,1765945768100,-158.78,0.000104,2]
[398872848,1765945768120,-158.78,0.000107,2]
[398872849,1765945768139,-158.78,0.000111,2]
[398872850,1765945768161,-158.78,0.000115,2]
[398872851,1765945768181,-158.78,0.000119,2]
[398872852,1765945768200,-158.78,0.000122,2]
[398872853,1765945768222,-158.78,0.000126,2]
[398872854,1765945768245,-111.27548083,0.00013,2]
[398872869,1765945832524,-153.5,0.0001,2]
[398872870,1765945832534,-153.5,0.000101,2]
[398872871,1765945832543,-153.5,0.000103,2]
[398872872,1765945832551,-153.5,0.000104,2]
[398872873,1765945832560,-97.34646164,0.000105,2]
[398872874,1765945832571,-56.15353836,0.000105,2]
[398872875,1765945832580,-153.5,0.000106,2]
[398872876,1765945832589,-153.5,0.000108,2]
[398872877,1765945832598,-153.5,0.000109,2]
[398872878,1765945832607,-17.99026888,0.00011,2]
[398872937,1765945838580,-135.50973112,0.00011,2]
[398872938,1765945838590,-153.5,0.000112,2]
[398872939,1765945838600,-153.5,0.000113,2]
[398872940,1765945838608,-153.5,0.000114,2]
[398872941,1765945838617,-153.5,0.000115,2]
[398872942,1765945838626,-153.5,0.000117,2]
[398872943,1765945838635,-153.5,0.000118,2]
[398872944,1765945838644,-153.5,0.000119,2]
[398872945,1765945838653,-153.5,0.000121,2]
[398872946,1765945838662,-153.5,0.000122,2]
[398872947,1765945838670,-153.5,0.000123,2]
[398872948,1765945838679,-153.5,0.000124,2]
[398872949,1765945838688,-153.5,0.000126,2]
[398872950,1765945838697,-153.5,0.000127,2]
[398872951,1765945838706,-153.5,0.000128,2]
[398872952,1765945838715,-153.5,0.00013,2]
[398872953,1765945838723,-153.5,0.000131,2]
[398872954,1765945838732,-185.50597877,0.00013136,2]
[398872955,1765945838741,-153.5,0.000132,2]
[398872956,1765945838754,-300.0,0.00013272,2]
[398872957,1765945838763,-481.0,0.00013272,2]
[398872958,1765945838771,-143.23331177,0.00013273,2]
[398872959,1765945838780,-500.0,0.00013273,2]
[398872960,1765945838791,-500.0,0.00013273,2]
[398872961,1765945838799,-500.0,0.00013273,2]
[398872962,1765945838809,-153.5,0.000133,2]
[398872963,1765945838818,-222.23648403,0.000135,2]
[398872964,1765945838828,-153.5,0.000135,2]
[398872965,1765945838838,-300.0,0.00013537,2]
[398872966,1765945838847,-300.0,0.00013537,2]
[398872967,1765945838856,-300.0,0.00013537,2]
[398872968,1765945838865,-300.0,0.00013537,2]
[398872969,1765945838874,-86.24729226,0.00013537,2]
[398872970,1765945838886,-213.75270774,0.00013537,2]
[398872971,1765945838895,-300.0,0.00013537,2]
[398872972,1765945838904,-231.44919497,0.00013537,2]
[398872973,1765945838915,-68.55080503,0.00013537,2]
[398872974,1765945838924,-300.0,0.00013537,2]
[398872975,1765945838933,-300.0,0.00013537,2]
[398872976,1765945838942,-21.44150582,0.00013537,2]
[398872977,1765945838953,-278.55849418,0.00013537,2]
[398872978,1765945838962,-200.9490643,0.00013537,2]
[398872979,1765945840701,-99.0509357,0.00013537,2]
[398872980,1765945840711,-300.0,0.00013537,2]
[398872981,1765945840720,-300.0,0.00013537,2]
[398872982,1765945840729,-300.0,0.00013537,2]
[398872983,1765945840738,-300.0,0.00013537,2]
[398872984,1765945840749,-1408.3294643,0.00013549,2]
[398872985,1765945840768,-153.5,0.000136,2]
[398872986,1765945840782,-300.0,0.00013673,2]
[398872987,1765945840791,-758.29039373,0.00013685,2]
[398872988,1765945840801,-1000.0,0.00013699,2]
[398872989,1765945840809,-1175.427427,0.00013699,2]
[398872990,1765945840818,-517.93709847,0.00013699,2]
[398872991,1765945840827,-500.0,0.00013699,2]
[398872992,1765945840836,-500.0,0.00013699,2]
[398872993,1765945840845,-500.0,0.00013699,2]
[398872994,1765945840854,-153.5,0.000137,2]
[398872995,1765945840862,-600.0,0.00013807,2]
[398872996,1765945840871,-256.53894778,0.00013821,2]
[398872997,1765945840880,-34.05902602,0.00013821,2]
[398872998,1765945840891,-391.06902396,0.00013821,2]
[398872999,1765945840901,-76.48246953,0.00013821,2]
[398873000,1765945840910,-500.0,0.00013821,2]
[398873001,1765945840919,-153.5,0.000139,2]
[398873002,1765945840928,-153.5,0.00014,2]
[398873003,1765945840937,-869.8680495,0.00014046,2]
[398873004,1765945840946,-153.5,0.000141,2]
[398873005,1765945840954,-600.0,0.00014221,2]
[398873006,1765945840963,-500.0,0.0001424,2]
[398873007,1765945840972,-500.0,0.0001424,2]
[398873008,1765945840981,-500.0,0.0001424,2]
[398873009,1765945841001,-500.0,0.0001424,2]
[398873010,1765945841012,-500.0,0.0001424,2]
[398873011,1765945841033,-500.0,0.0001424,2]
[398873012,1765945841045,-500.0,0.0001424,2]
[398873013,1765945841057,-340.88576063,0.0001424,2]
[398873014,1765945841069,-500.0,0.0001424,2]
[398873015,1765945841081,-500.0,0.0001424,2]
[398873016,1765945841092,-1000.0,0.00014247,2]
[398873017,1765945841104,-1000.0,0.00014247,2]
[398873018,1765945841116,-510.77032884,0.00014247,2]
[398873019,1765945841126,-758.29039373,0.00014547,2]
[398873020,1765945841136,-191.0,0.00014551,2]
[398873021,1765945841146,-1500.0,0.00014795,2]
[398873022,1765945841157,-1500.0,0.00014795,2]
[398873023,1765945841168,-487.50297775,0.00015,2]
[398873024,1765945841180,-271.80633827,0.00015027,2]
[398873025,1765945841190,-11282.3154321,0.00015028,2]
[398873026,1765945841204,-4638.2567345,0.00015028,2]
[398873139,1765945843593,-458.38547435,0.00015028,2]
[398873142,1765945843606,-1006.48258911,0.00015028,2]
[398873147,1765945843649,-23493.2860514,0.00015028,2]
[398873150,1765945843662,-5465.64002953,0.00015028,2]
[398873152,1765945843674,-1038.17681412,0.00015028,2]
[398873156,1765945843706,-11874.6777346,0.00015028,2]
[398873159,1765945843717,-315.89,0.00015028,2]
[398873449,1765945846707,-879.9514622,0.00015028,2]
[398873506,1765945928751,150.0,7.739e-05,2]
[398873507,1765945929181,150.0,8.443e-05,2]
[398873508,1765945999399,801.35052022,6.849e-05,5]
[398873509,1765946000943,200.33763006,6.849e-05,5]
[398873510,1765946193074,150.0,7.813e-05,2]
[398873511,1765946193483,150.0,8.523e-05,2]
[398873512,1765946193894,150.0,9.234e-05,2]
[398873513,1765946264253,150.0,7.846e-05,2]
[398873514,1765946264656,150.0,8.559e-05,2]
[398873515,1765946265066,150.0,9.273e-05,2]
[398873516,1765946277997,4260.30482691,9.64e-05,2]
[398873517,1765946279968,190.18,8.238e-05,2]
[398873518,1765946337825,150.0,7.879e-05,2]
[398873519,1765946338777,150.0,8.595e-05,2]
[398873520,1765946338822,150.0,9.311e-05,2]
[398873521,1765946412407,150.0,7.795e-05,2]
[398873522,1765946412854,150.0,8.503e-05,2]
[398873523,1765946413279,150.0,9.212e-05,2]
[398873524,1765946489335,150.0,7.78e-05,2]
[398873525,1765946489742,150.0,8.487e-05,2]
[398873526,1765946490187,150.0,9.194e-05,2]
[398873527,1765946565353,150.0,7.837e-05,2]
[398873528,1765946565755,150.0,8.549e-05,2]
[398873529,1765946566158,150.0,9.262e-05,2]
[398873530,1765946638414,150.0,7.839e-05,2]
[398873531,1765946638831,150.0,8.551e-05,2]
[398873532,1765946639249,150.0,9.264e-05,2]
[398873536,1765946710460,150.0,7.841e-05,2]
[398873537,1765946710902,150.0,8.554e-05,2]
[398873538,1765946711294,150.0,9.267e-05,2]
[398873539,1765946779494,150.0,7.851e-05,2]
[398873540,1765946779920,150.0,8.565e-05,2]
[398873541,1765946780324,150.0,9.279e-05,2]
[398873542,1765946841132,-462.10534614,9.803e-05,2]
[398873543,1765946841153,-186.05199941,9.853e-05,2]
[398873544,1765946841176,-150.0,9.902e-05,2]
[398873545,1765946841196,-169.26,0.0001,2]
[398873546,1765946841217,-150.0,0.00010689,2]
[398873547,1765946841237,-169.26,0.000114,2]
[398873548,1765946841262,-150.0,0.00011406,2]
[398873549,1765946841282,-253.94263435,0.000115,2]
[398873550,1765946841303,-219.54135931,0.00011853,2]
[398873551,1765946841324,-150.0,0.00012118,2]
[398873552,1765946841347,-169.26,0.000127,2]
[398873553,1765946841366,-503.52832888,0.00013273,2]
[398873554,1765946841384,-461.42504945,0.00013273,2]
[398873555,1765946851087,-38.57495055,0.00013273,2]
[398873556,1765946851107,-423.53039559,0.00013273,2]
[398873557,1765946953084,-156.8,0.0001,2]
[398873558,1765947001149,6256.0,9.64e-05,2]
[398873564,1765947031938,-158.97,0.0001,2]
[398873565,1765947031947,-158.97,0.000105,2]
[398873566,1765947031965,-158.97,0.00011,2]
[398873567,1765947031976,-158.97,0.000115,2]
[398873568,1765947031985,-158.97,0.000121,2]
[398873569,1765947031994,-158.97,0.000126,2]
[398873570,1765947032003,-76.65079729,0.000131,2]
[398873571,1765947032015,-82.31920271,0.000131,2]
[398873572,1765947032024,-221.09570271,0.00013273,2]
[398873649,1765947038155,-278.90429729,0.00013273,2]
[398873651,1765947038165,-597.50533624,0.00013273,2]
[398873653,1765947038174,-500.0,0.00013273,2]
[398873655,1765947038184,-500.0,0.00013273,2]
[398873657,1765947038193,-300.0,0.00013537,2]
[398873659,1765947038202,-300.0,0.00013537,2]
[398873661,1765947038212,-300.0,0.00013537,2]
[398873663,1765947038221,-300.0,0.00013537,2]
[398873665,1765947038230,-300.0,0.00013537,2]
[398873667,1765947038239,-300.0,0.00013537,2]
[398873669,1765947038248,-300.0,0.00013537,2]
[398873671,1765947038258,-300.0,0.00013537,2]
[398873673,1765947038267,-300.0,0.00013537,2]
[398873675,1765947038276,-300.0,0.00013537,2]
[398873677,1765947038285,-300.0,0.00013537,2]
[398873679,1765947038294,-300.0,0.00013537,2]
[398873681,1765947038303,-300.0,0.00013537,2]
[398873683,1765947038312,-300.0,0.00013537,2]
[398873685,1765947038327,-300.0,0.00013537,2]
[398873687,1765947038337,-158.97,0.000136,2]
[398873689,1765947038346,-500.0,0.00013699,2]
[398873691,1765947038356,-500.0,0.00013699,2]
[398873693,1765947038366,-192.16490992,0.00013699,2]
[398873695,1765947038375,-600.0,0.00013807,2]
[398873697,1765947038385,-576.46960441,0.00013821,2]
[398873699,1765947038394,-1007.21829996,0.00013821,2]
[398873701,1765947038404,-448.62294527,0.00013821,2]
[398873703,1765947038413,-253.0307192,0.00013853,2]
[398873705,1765947038423,-158.97,0.000141,2]
[398873707,1765947038432,-505.80389223,0.00014247,2]
[398873709,1765947038441,-1000.0,0.00014247,2]
[398873711,1765947038451,-253.94263435,0.00014257,2]
[398873713,1765947038461,-1500.0,0.00014795,2]
[398873715,1765947038470,-413.7426469,0.00014795,2]
[398873717,1765947038479,-152.04195138,0.00014795,2]
[398873720,1765947038488,-388.44586744,0.00014795,2]
[398873721,1765947038498,-179.03115031,0.00014795,2]
[398873724,1765947038507,-744.73676441,0.00014795,2]
[398873726,1765947038516,-2555.4391836,0.00014803,2]
[398873728,1765947038525,-1244.7952646,0.00014803,2]
[398873730,1765947038535,-278.85,0.00014837,2]
[398873732,1765947038545,-164.9,0.00014837,2]
[398873733,1765947038555,-5040.28392451,0.00014837,2]
[398873735,1765947038564,-544.62161501,0.00014849,5]
[398873738,1765947038574,-238.04359821,0.00014927,2]
[398873740,1765947038584,-73644.31081467,0.00014928,2]
[398874146,1765947042916,-56521.75515901,0.00014928,2]
[398874147,1765947042925,-164.91440972,0.00014937,2]
[398874148,1765947042935,-165.769371,0.00015068,2]
[398874149,1765947042944,-608.16780552,0.00015138,2]
[398874150,1765947042953,-500.0,0.00015142,2]
[398874151,1765947042965,-720.0,0.00015187,2]
[398874152,1765947042974,-228.67432652,0.00015263,2]
[398874153,1765947042983,-506.34036418,0.00015342,2]
[398874154,1765947042992,-514.84070869,0.00015355,2]
[398874155,1765947043001,-1000.0,0.00015355,2]
[398874156,1765947043010,-2000.0,0.00015355,2]
[398874157,1765947043019,-2000.0,0.00015355,2]
[398874158,1765947043028,-2000.0,0.00015355,2]
[398874159,1765947043037,-2000.0,0.00015355,2]
[398874160,1765947043047,-2000.0,0.00015355,2]
[398874161,1765947043056,-2000.0,0.00015355,2]
[398874162,1765947043065,-2002.0,0.00015355,2]
[398874163,1765947043073,-2000.0,0.00015355,2]
[398874164,1765947043083,-2000.0,0.00015355,2]
[398874165,1765947043093,-2000.0,0.00015355,2]
[398874166,1765947043102,-2000.0,0.00015355,2]
[398874167,1765947043112,-2000.0,0.00015355,2]
[398874168,1765947043121,-2000.0,0.00015355,2]
[398874169,1765947043130,-2000.0,0.00015355,2]
[398874170,1765947043139,-1259.88962209,0.00015355,2]
[398874171,1765947043148,-691.91689433,0.00015355,2]
[398874172,1765947043157,-228.67432652,0.00015823,2]
[398874173,1765947043166,-1291.0,0.00015823,2]
[398874174,1765947043176,-286.5200791,0.00015853,2]
[398874175,1765947043185,-254.69827052,0.00015903,2]
[398874176,1765947043194,-2002.0,0.00015903,2]
[398874178,1765947043203,-500.0,0.00016,2]
[398874179,1765947043212,-1367.00918487,0.00016036,2]
[398874180,1765947043221,-228.67432652,0.00016382,2]
[398874181,1765947043230,-182.28,0.0001644,2]
[398874182,1765947043239,-2002.0,0.00016451,2]
[398874183,1765947043250,-160.0,0.000165,2]
[398874184,1765947043259,-160.0,0.000165,2]
[398874185,1765947043268,-160.0,0.000165,2]
[398874187,1765947043277,-160.0,0.000165,2]
[398874189,1765947043286,-864.0,0.00016706,2]
[398874191,1765947043295,-176.39257984,0.00016785,2]
[398874193,1765947043305,-228.67432652,0.00016941,2]
[398874196,1765947043314,-2002.0,0.00016999,2]
[398874197,1765947043328,-254.19657698,0.00017014,2]
[398874200,1765947043337,-269.0,0.00017187,2]
[398874202,1765947043346,-151.0,0.000172,2]
[398874204,1765947043355,-160.0,0.0001727,2]
[398874206,1765947043364,-312.0,0.00017358,2]
[398874208,1765947043374,-228.90300085,0.000175,2]
[398874210,1765947043383,-151.0,0.000175,2]
[398874212,1765947043392,-402.0,0.00017523,2]
[398874213,1765947043401,-2002.0,0.00017547,2]
[398874216,1765947043410,-375.2094416,0.00017638,2]
[398874218,1765947043420,-369.13995854,0.00017638,2]
[398874220,1765947043429,-151.0,0.000178,2]
[398874222,1765947043438,-260.0,0.00017818,2]
[398874224,1765947043448,-339.86047153,0.00017823,2]
[398874226,1765947043457,-320.00943899,0.00017853,2]
[398874228,1765947043466,-159.0,0.000179,2]
[398874230,1765947043475,-159.0,0.000179,2]
[398874232,1765947043484,-159.0,0.000179,3]
[398874234,1765947043493,-500.0,0.00018,2]
[398874236,1765947043502,-5040.28392451,0.00018061,2]
[398874238,1765947043511,-2002.0,0.00018095,2]
[398874240,1765947043521,-255.0,0.0001811,3]
[398874242,1765947043531,-360.0,0.00018366,2]
[398874244,1765947043540,-1000.0,0.00018377,2]
[398874246,1765947043549,-2167.208,0.00018506,2]
[398874248,1765947043558,-635.077,0.00018506,2]
[398874250,1765947043567,-1366.697,0.00018506,2]
[398874252,1765947043575,-2002.0,0.00018643,2]
[398874254,1765947043584,-218.236,0.00018813,2]
[398874256,1765947043593,-237.925,0.00018813,2]
[398874258,1765947043603,-250.0,0.00018813,2]
[398874260,1765947043613,-258.484,0.00018813,2]
[398874262,1765947043621,-266.391,0.00018813,2]
[398874264,1765947043630,-256.00172711,0.0001888,2]
[398874266,1765947043639,-160.0,0.000189,2]
[398874268,1765947043648,-160.0,0.000189,2]
[398874270,1765947043657,-160.0,0.000189,3]
[398874272,1765947043666,-160.0,0.000189,3]
[398874274,1765947043675,-302.57643837,0.000189,2]
[398874276,1765947043684,-460.0,0.00018914,2]
[398874278,1765947043693,-190.53,0.00019,2]
[398874280,1765947043703,-303.06022261,0.00019089,2]
[398874282,1765947043712,-1453.579634,0.00019178,2]
[398874283,1765947043722,-1453.579634,0.00019178,2]
[398874285,1765947043731,-1453.579634,0.00019178,2]
[398874287,1765947043741,-1453.579634,0.00019178,2]
[398874289,1765947043750,-1453.579634,0.00019178,2]
[398874291,1765947043759,-1453.579634,0.00019178,2]
[398874293,1765947043769,-1453.579634,0.00019178,2]
[398874295,1765947043778,-1453.579634,0.00019178,2]
[398874297,1765947043787,-1453.579634,0.00019178,2]
[398874299,1765947043797,-1453.579634,0.00019178,2]
[398874302,1765947043806,-1453.579634,0.00019178,2]
[398874304,1765947043816,-1453.579634,0.00019178,2]
[398874306,1765947043826,-500.0,0.00019178,2]
[398874308,1765947043834,-2002.0,0.00019191,2]
[398874309,1765947043844,-176.75,0.000192,2]
[398874311,1765947043853,-182.28,0.00019452,2]
[398874314,1765947043862,-560.0,0.00019462,2]
[398874315,1765947043871,-165.769371,0.00019635,2]
[398874317,1765947043881,-858.651,0.00019678,2]
[398874318,1765947043890,-450.0,0.00019714,5]
[398874319,1765947043899,-602.0,0.00019714,5]
[398874320,1765947043908,-500.0,0.00019726,2]
[398874321,1765947043916,-2002.0,0.00019739,2]
[398874322,1765947043926,-160.0,0.000198,4]
[398874323,1765947043935,-160.0,0.000198,3]
[398874324,1765947043944,-160.0,0.000198,5]
[398874325,1765947043952,-160.0,0.000198,5]
[398874326,1765947043961,-160.0,0.000198,7]
[398874327,1765947043970,-160.0,0.000198,7]
[398874328,1765947043978,-670.40033382,0.000198,2]
[398874329,1765947043987,-1189.4889364,0.000198,2]
[398874330,1765947043997,-353.49879888,0.00019853,2]
[398874331,1765947044006,-4277.0,0.0002,2]
[398874332,1765947044015,-401.73891152,0.0002,3]
[398874333,1765947044024,-1721.38819295,0.0002,2]
[398874334,1765947044033,-7054.50384868,0.0002,2]
[398874335,1765947044042,-4575.22688995,0.0002,2]
[398874336,1765947044050,-5598.80843884,0.0002,2]
[398874337,1765947044059,-300.0,0.0002,2]
[398874338,1765947044068,-1453.579634,0.0002,2]
[398874339,1765947044076,-1453.579634,0.0002,2]
[398874340,1765947044085,-1453.579634,0.0002,2]
[398874341,1765947044094,-1453.579634,0.0002,2]
[398874342,1765947044104,-1453.579634,0.0002,2]
[398874343,1765947044112,-1453.579634,0.0002,2]
[398874344,1765947044121,-1453.579634,0.0002,2]
[398874345,1765947044130,-1453.579634,0.0002,2]
[398874346,1765947044138,-150.0,0.0002,10]
[398874347,1765947044147,-209.77239607,0.0002,2]
[398874348,1765947044156,-660.0,0.0002001,2]
[398874349,1765947044165,-1175.427427,0.00020187,2]
[398874350,1765947044173,-1000.0,0.00020214,10]
[398874352,1765947044183,-244.0,0.00020214,10]
[398874354,1765947044192,-500.0,0.00020274,2]
[398874356,1765947044202,-2002.0,0.00020287,2]
[398874358,1765947044211,-760.0,0.00020558,2]
[398874360,1765947044221,-500.0,0.00020822,2]
[398874362,1765947044230,-2002.0,0.00020835,2]
[398874364,1765947044239,-159.0,0.00021,10]
[398874366,1765947044249,-159.0,0.00021,10]
[398874368,1765947044258,-150.0,0.00021,2]
[398874370,1765947044267,-224.98,0.00021,2]
[398874372,1765947044276,-860.0,0.00021106,2]
[398874374,1765947044285,-5040.28392451,0.00021284,2]
[398874376,1765947044296,-500.0,0.0002137,2]
[398874378,1765947044305,-2002.0,0.00021383,2]
[398874380,1765947044314,-2158.0,0.00021506,2]
[398874382,1765947044328,-632.0,0.00021506,2]
[398874384,1765947044336,-960.0,0.00021654,2]
[398874386,1765947044345,-150.0,0.00021813,2]
[398874388,1765947044354,-150.0,0.00021813,2]
[398874390,1765947044365,-386.98815878,0.00021853,2]
[398874392,1765947044374,-1542.173417,0.00021918,2]
[398874394,1765947044383,-1542.173417,0.00021918,2]
[398874396,1765947044392,-1542.173417,0.00021918,2]
[398874398,1765947044403,-1542.173417,0.00021918,2]
[398874400,1765947044414,-1542.173417,0.00021918,2]
[398874402,1765947044423,-1542.173417,0.00021918,2]
[398874405,1765947044432,-1542.173417,0.00021918,2]
[398874407,1765947044442,-1542.173417,0.00021918,2]
[398874408,1765947044451,-1542.173417,0.00021918,2]
[398874410,1765947044460,-1542.173417,0.00021918,2]
[398874413,1765947044470,-1542.173417,0.00021918,2]
[398874414,1765947044479,-1542.173417,0.00021918,2]
[398874416,1765947044488,-1542.173417,0.00021918,2]
[398874418,1765947044498,-1542.173417,0.00021918,2]
[398874420,1765947044507,-1542.173417,0.00021918,2]
[398874423,1765947044516,-1542.173417,0.00021918,2]